[Event "Titled Tuesday Blitz May 30 Early 2023"]
[White "rikchessmx"]
[Black "Zheenbekov, Nurgazy"]
[BlackFideId "13800485"]
[WhiteElo "2316"]
[BlackElo "1975"]
[Result "1-0"]
[Round "08"]
[TimeControl "180+2"]
[Date "2023.05.30"]
[WhiteClock "0:00:04"]
[BlackClock "0:00:00"]

1. e4 {[%clk 0:03:00]}  e5 {[%clk 0:02:29]} 2. Nf3 {[%clk 0:02:50]}  Nc6 {[%clk 0:02:29]} 3. Bb5 {[%clk 0:02:44]}  a6 {[%clk 0:02:28]} 4. Ba4 {[%clk 0:02:44]}  Nf6 {[%clk 0:02:28]} 5. O-O {[%clk 0:02:37]}  Be7 {[%clk 0:02:26]} 6. Re1 {[%clk 0:02:36]}  b5 {[%clk 0:02:26]} 7. Bb3 {[%clk 0:02:35]}  d6 {[%clk 0:02:26]} 8. h3 {[%clk 0:02:08]}  O-O {[%clk 0:02:25]} 9. c3 {[%clk 0:02:08]}  Nb8 {[%clk 0:02:23]} 10. d4 {[%clk 0:02:07]}  Nbd7 {[%clk 0:02:23]} 11. Nbd2 {[%clk 0:02:06]}  Bb7 {[%clk 0:02:23]} 12. Qe2 {[%clk 0:02:05]}  c5 {[%clk 0:02:11]} 13. a4 {[%clk 0:02:02]}  c4 {[%clk 0:02:07]} 14. Bc2 {[%clk 0:02:02]}  Re8 {[%clk 0:02:06]} 15. b3 {[%clk 0:01:55]}  cxb3 {[%clk 0:01:41]} 16. Bxb3 {[%clk 0:01:53]}  Bf8 {[%clk 0:01:41]} 17. Bb2 {[%clk 0:01:02]}  h6 {[%clk 0:01:37]} 18. axb5 {[%clk 0:00:50]}  axb5 {[%clk 0:01:29]} 19. Rxa8 {[%clk 0:00:49]}  Qxa8 {[%clk 0:01:28]} 20. Qxb5 {[%clk 0:00:41]}  Bc6 {[%clk 0:01:23]} 21. Qc4 {[%clk 0:00:41]}  d5 {[%clk 0:01:19]} 22. exd5 {[%clk 0:00:38]}  Bxd5 {[%clk 0:01:19]} 23. Qb5 {[%clk 0:00:29]}  Rb8 {[%clk 0:01:15]} 24. Bxd5 {[%clk 0:00:28]}  Nxd5 {[%clk 0:01:11]} 25. Qxd7 {[%clk 0:00:25]}  Nf6 {[%clk 0:01:03]} 26. Qc7 {[%clk 0:00:19]}  e4 {[%clk 0:00:59]} 27. Ne5 {[%clk 0:00:18]}  Rb7 {[%clk 0:00:58]} 28. Qc4 {[%clk 0:00:15]}  Rxb2 {[%clk 0:00:55]} 29. Qxf7+ {[%clk 0:00:15]}  Kh7 {[%clk 0:00:55]} 30. Qg6+ {[%clk 0:00:14]}  Kh8 {[%clk 0:00:55]} 31. Nf7+ {[%clk 0:00:13]}  Kg8 {[%clk 0:00:55]} 32. Nxh6+ {[%clk 0:00:13]}  Kh8 {[%clk 0:00:55]} 33. Nxe4 {[%clk 0:00:09]}  Nxe4 {[%clk 0:00:35]} 34. Nf7+ {[%clk 0:00:07]}  Kg8 {[%clk 0:00:34]} 35. Rxe4 {[%clk 0:00:08]}  Qb8 {[%clk 0:00:17]} 36. Ne5 {[%clk 0:00:07]}  Rb1+ {[%clk 0:00:17]} 37. Kh2 {[%clk 0:00:07]}  Rb6 {[%clk 0:00:14]} 38. Qf7+ {[%clk 0:00:06]}  Kh7 {[%clk 0:00:14]} 39. Rh4+ {[%clk 0:00:06]}  Rh6 {[%clk 0:00:11]} 40. Qg6+ {[%clk 0:00:06]}  Kg8 {[%clk 0:00:09]} 41. Rxh6 {[%clk 0:00:06]}  Bd6 {[%clk 0:00:00]} 42. Qh7+ {[%clk 0:00:04]} 1-0


[Site "https://www.chess.com"]

[Event "Titled Tuesday Blitz May 30 Early 2023"]
[White "Jiganchine, Roman"]
[Black "Santos Flores, Alberto"]
[WhiteFideId "2603667"]
[BlackFideId "3601234"]
[WhiteElo "2313"]
[BlackElo "2235"]
[Result "0-1"]
[Round "08"]
[TimeControl "180+2"]
[Date "2023.05.30"]
[WhiteClock "0:00:21"]
[BlackClock "0:01:58"]

1. e4 {[%clk 0:02:59]}  c5 {[%clk 0:03:00]} 2. Nf3 {[%clk 0:02:54]}  Nc6 {[%clk 0:02:59]} 3. Bb5 {[%clk 0:02:53]}  g6 {[%clk 0:02:59]} 4. O-O {[%clk 0:02:52]}  Bg7 {[%clk 0:02:59]} 5. Re1 {[%clk 0:02:50]}  Nf6 {[%clk 0:02:59]} 6. e5 {[%clk 0:02:50]}  Nd5 {[%clk 0:02:59]} 7. Nc3 {[%clk 0:02:50]}  Nc7 {[%clk 0:02:54]} 8. Bxc6 {[%clk 0:02:48]}  dxc6 {[%clk 0:02:54]} 9. d3 {[%clk 0:02:46]}  O-O {[%clk 0:02:54]} 10. h3 {[%clk 0:02:46]}  Ne6 {[%clk 0:02:52]} 11. Be3 {[%clk 0:02:45]}  Nd4 {[%clk 0:02:52]} 12. Bf4 {[%clk 0:02:43]}  b6 {[%clk 0:02:48]} 13. a4 {[%clk 0:02:42]}  Be6 {[%clk 0:02:46]} 14. Ne4 {[%clk 0:02:37]}  Bd5 {[%clk 0:02:46]} 15. Nxd4 {[%clk 0:02:36]}  Bxe4 {[%clk 0:02:39]} 16. Rxe4 {[%clk 0:02:33]}  cxd4 {[%clk 0:02:39]} 17. e6 {[%clk 0:02:29]}  f5 {[%clk 0:02:37]} 18. Re2 {[%clk 0:02:16]}  Qd5 {[%clk 0:02:36]} 19. Qd2 {[%clk 0:02:13]}  c5 {[%clk 0:02:35]} 20. b3 {[%clk 0:02:05]}  Rac8 {[%clk 0:02:35]} 21. Bg5 {[%clk 0:02:01]}  Bf6 {[%clk 0:02:34]} 22. Bh6 {[%clk 0:01:59]}  Bg7 {[%clk 0:02:33]} 23. Bxg7 {[%clk 0:01:58]}  Kxg7 {[%clk 0:02:33]} 24. Rae1 {[%clk 0:01:58]}  Rf6 {[%clk 0:02:32]} 25. h4 {[%clk 0:01:51]}  Rc6 {[%clk 0:02:31]} 26. h5 {[%clk 0:01:50]}  Rcxe6 {[%clk 0:02:30]} 27. h6+ {[%clk 0:01:50]}  Kf7 {[%clk 0:02:30]} 28. a5 {[%clk 0:01:45]}  Rxe2 {[%clk 0:02:29]} 29. Rxe2 {[%clk 0:01:45]}  Re6 {[%clk 0:02:29]} 30. Rxe6 {[%clk 0:01:36]}  Qxe6 {[%clk 0:02:29]} 31. Qf4 {[%clk 0:01:36]}  Qe1+ {[%clk 0:02:20]} 32. Kh2 {[%clk 0:01:36]}  e5 {[%clk 0:02:20]} 33. Qh4 {[%clk 0:01:33]}  Qd2 {[%clk 0:02:13]} 34. a6 {[%clk 0:01:25]}  Qf4+ {[%clk 0:02:05]} 35. Qxf4 {[%clk 0:01:14]}  exf4 {[%clk 0:02:06]} 36. Kh3 {[%clk 0:01:11]}  g5 {[%clk 0:02:06]} 37. g4 {[%clk 0:00:54]}  fxg3 {[%clk 0:02:05]} 38. Kxg3 {[%clk 0:00:31]}  Kg6 {[%clk 0:02:05]} 39. f4 {[%clk 0:00:29]}  g4 {[%clk 0:01:59]} 40. Kh4 {[%clk 0:00:26]}  Kxh6 {[%clk 0:01:59]} 41. Kg3 {[%clk 0:00:27]}  Kg6 {[%clk 0:01:59]} 42. Kh4 {[%clk 0:00:27]}  Kf6 {[%clk 0:01:59]} 43. Kg3 {[%clk 0:00:26]}  Ke6 {[%clk 0:01:59]} 44. Kh4 {[%clk 0:00:26]}  h6 {[%clk 0:01:58]} 45. Kg3 {[%clk 0:00:26]}  Kd6 {[%clk 0:01:58]} 46. Kh4 {[%clk 0:00:21]}  Kc6 {[%clk 0:01:58]} 0-1


[Site "https://www.chess.com"]

[Event "Titled Tuesday Blitz May 30 Early 2023"]
[White "Samaganova, Aleksandra"]
[Black "Fishchuk, Vladyslav"]
[WhiteFideId "13800221"]
[BlackFideId "34122117"]
[WhiteElo "1858"]
[BlackElo "2082"]
[Result "0-1"]
[Round "08"]
[TimeControl "180+2"]
[Date "2023.05.30"]
[WhiteClock "0:00:03"]
[BlackClock "0:00:07"]

1. c4 {[%clk 0:03:00]}  Nf6 {[%clk 0:02:52]} 2. Nc3 {[%clk 0:02:59]}  c5 {[%clk 0:02:50]} 3. Nf3 {[%clk 0:02:59]}  Nc6 {[%clk 0:02:46]} 4. e3 {[%clk 0:02:58]}  g6 {[%clk 0:02:42]} 5. d4 {[%clk 0:02:57]}  cxd4 {[%clk 0:02:43]} 6. exd4 {[%clk 0:02:58]}  d5 {[%clk 0:02:42]} 7. cxd5 {[%clk 0:02:41]}  Nxd5 {[%clk 0:02:42]} 8. Bc4 {[%clk 0:02:41]}  Be6 {[%clk 0:02:37]} 9. Bb5 {[%clk 0:02:35]}  a6 {[%clk 0:02:16]} 10. Bxc6+ {[%clk 0:02:30]}  bxc6 {[%clk 0:02:16]} 11. O-O {[%clk 0:02:21]}  Bg7 {[%clk 0:02:14]} 12. Re1 {[%clk 0:02:08]}  O-O {[%clk 0:02:12]} 13. h3 {[%clk 0:02:09]}  Rb8 {[%clk 0:02:07]} 14. Qa4 {[%clk 0:02:04]}  Qb6 {[%clk 0:02:02]} 15. Ne4 {[%clk 0:01:55]}  Rfe8 {[%clk 0:01:37]} 16. Nc5 {[%clk 0:01:51]}  Bc8 {[%clk 0:01:32]} 17. Qc4 {[%clk 0:01:32]}  Qb5 {[%clk 0:01:19]} 18. Qc2 {[%clk 0:01:22]}  Bf5 {[%clk 0:01:15]} 19. Qe2 {[%clk 0:01:15]}  Nb4 {[%clk 0:00:43]} 20. g4 {[%clk 0:00:39]}  Bc8 {[%clk 0:00:29]} 21. a3 {[%clk 0:00:34]}  Nd5 {[%clk 0:00:28]} 22. Qxb5 {[%clk 0:00:30]}  axb5 {[%clk 0:00:28]} 23. b4 {[%clk 0:00:28]}  h5 {[%clk 0:00:22]} 24. gxh5 {[%clk 0:00:21]}  gxh5 {[%clk 0:00:23]} 25. Kh2 {[%clk 0:00:20]}  f6 {[%clk 0:00:19]} 26. Rg1 {[%clk 0:00:18]}  Kf7 {[%clk 0:00:19]} 27. Bb2 {[%clk 0:00:12]}  Nf4 {[%clk 0:00:19]} 28. Rae1 {[%clk 0:00:08]}  Nxh3 {[%clk 0:00:17]} 29. Rg2 {[%clk 0:00:08]}  Nf4 {[%clk 0:00:17]} 30. Rgg1 {[%clk 0:00:08]}  Bg4 {[%clk 0:00:16]} 31. Nd2 {[%clk 0:00:06]}  Bh6 {[%clk 0:00:16]} 32. Nde4 {[%clk 0:00:06]}  Nd5 {[%clk 0:00:15]} 33. Ng3 {[%clk 0:00:05]}  Bf4 {[%clk 0:00:15]} 34. Nd3 {[%clk 0:00:05]}  Bd6 {[%clk 0:00:14]} 35. Kg2 {[%clk 0:00:05]}  Rf8 {[%clk 0:00:14]} 36. Ne4 {[%clk 0:00:05]}  Bc7 {[%clk 0:00:13]} 37. f3 {[%clk 0:00:05]}  Bf5 {[%clk 0:00:12]} 38. Kf2 {[%clk 0:00:05]}  Rh8 {[%clk 0:00:11]} 39. Ndc5 {[%clk 0:00:04]}  h4 {[%clk 0:00:10]} 40. Rh1 {[%clk 0:00:04]}  h3 {[%clk 0:00:10]} 41. Reg1 {[%clk 0:00:04]}  Rbg8 {[%clk 0:00:09]} 42. Bc1 {[%clk 0:00:04]}  Rxg1 {[%clk 0:00:08]} 43. Kxg1 {[%clk 0:00:04]}  Rg8+ {[%clk 0:00:08]} 44. Kf2 {[%clk 0:00:05]}  Rg2+ {[%clk 0:00:08]} 45. Ke1 {[%clk 0:00:05]}  h2 {[%clk 0:00:08]} 46. Kf1 {[%clk 0:00:04]}  Bh3 {[%clk 0:00:07]} 47. Ke1 {[%clk 0:00:02]}  Rg1+ {[%clk 0:00:07]} 48. Kd2 {[%clk 0:00:03]}  Rxh1 {[%clk 0:00:08]} 49. Nf2 {[%clk 0:00:03]}  Rg1 {[%clk 0:00:06]} 50. Bb2 {[%clk 0:00:02]}  Rg2 {[%clk 0:00:07]} 51. Ne4 {[%clk 0:00:02]}  h1=Q {[%clk 0:00:06]} 52. Kd3 {[%clk 0:00:03]}  Rxf2 {[%clk 0:00:06]} 53. Nxf2 {[%clk 0:00:03]}  Qf1+ {[%clk 0:00:07]} 54. Ke4 {[%clk 0:00:03]}  f5# {[%clk 0:00:07]} 0-1


[Site "https://www.chess.com"]

[Event "Titled Tuesday Blitz May 30 Early 2023"]
[White "Omariev, Maksim"]
[Black "Llanos, Guillermo"]
[WhiteFideId "4193423"]
[BlackFideId "100358"]
[WhiteElo "2464"]
[BlackElo "2225"]
[Result "1-0"]
[Round "08"]
[TimeControl "180+2"]
[Date "2023.05.30"]
[WhiteClock "0:00:09"]
[BlackClock "0:00:59"]

1. e4 {[%clk 0:03:00]}  Nf6 {[%clk 0:02:57]} 2. e5 {[%clk 0:03:00]}  Nd5 {[%clk 0:02:56]} 3. d4 {[%clk 0:03:01]}  d6 {[%clk 0:02:56]} 4. Nf3 {[%clk 0:03:02]}  g6 {[%clk 0:02:55]} 5. Be2 {[%clk 0:03:03]}  Bg7 {[%clk 0:02:55]} 6. exd6 {[%clk 0:03:04]}  cxd6 {[%clk 0:02:55]} 7. c4 {[%clk 0:03:04]}  Nb6 {[%clk 0:02:55]} 8. O-O {[%clk 0:03:05]}  O-O {[%clk 0:02:55]} 9. Nc3 {[%clk 0:03:05]}  Bg4 {[%clk 0:02:49]} 10. h3 {[%clk 0:02:53]}  Bxf3 {[%clk 0:02:48]} 11. Bxf3 {[%clk 0:02:54]}  Nc6 {[%clk 0:02:48]} 12. Bxc6 {[%clk 0:02:45]}  bxc6 {[%clk 0:02:48]} 13. Qd3 {[%clk 0:02:44]}  d5 {[%clk 0:02:39]} 14. c5 {[%clk 0:02:42]}  Nd7 {[%clk 0:02:26]} 15. f4 {[%clk 0:02:42]}  e6 {[%clk 0:02:24]} 16. b4 {[%clk 0:02:38]}  a5 {[%clk 0:02:19]} 17. b5 {[%clk 0:02:38]}  cxb5 {[%clk 0:02:13]} 18. Nxb5 {[%clk 0:02:39]}  a4 {[%clk 0:02:07]} 19. Rb1 {[%clk 0:02:34]}  Qa5 {[%clk 0:02:01]} 20. Bd2 {[%clk 0:01:57]}  Qa6 {[%clk 0:02:01]} 21. Qe3 {[%clk 0:01:49]}  Rfc8 {[%clk 0:01:57]} 22. Rb4 {[%clk 0:01:39]}  Nb8 {[%clk 0:01:54]} 23. Nd6 {[%clk 0:01:36]}  Rc7 {[%clk 0:01:49]} 24. Rb6 {[%clk 0:01:04]}  Nc6 {[%clk 0:01:40]} 25. Rxa6 {[%clk 0:01:02]}  Rxa6 {[%clk 0:01:40]} 26. Bc3 {[%clk 0:00:50]}  a3 {[%clk 0:01:39]} 27. Rb1 {[%clk 0:00:50]}  h5 {[%clk 0:01:38]} 28. Qd3 {[%clk 0:00:42]}  Ra4 {[%clk 0:01:37]} 29. Qb5 {[%clk 0:00:36]}  Bxd4+ {[%clk 0:01:35]} 30. Kh2 {[%clk 0:00:08]}  Ra8 {[%clk 0:01:34]} 31. Bxd4 {[%clk 0:00:06]}  Nxd4 {[%clk 0:01:34]} 32. Qb4 {[%clk 0:00:06]}  Nc6 {[%clk 0:01:09]} 33. Qb6 {[%clk 0:00:06]}  Raa7 {[%clk 0:01:09]} 34. Nb5 {[%clk 0:00:06]}  Rab7 {[%clk 0:01:08]} 35. Qxc7 {[%clk 0:00:06]}  Rxc7 {[%clk 0:01:08]} 36. Nxc7 {[%clk 0:00:06]}  Kf8 {[%clk 0:01:05]} 37. Rb6 {[%clk 0:00:06]}  Nd4 {[%clk 0:01:04]} 38. Nb5 {[%clk 0:00:06]}  Nf5 {[%clk 0:01:00]} 39. c6 {[%clk 0:00:06]}  Ke7 {[%clk 0:01:00]} 40. c7 {[%clk 0:00:07]}  Kd7 {[%clk 0:01:00]} 41. Rb8 {[%clk 0:00:07]}  Nd6 {[%clk 0:01:00]} 42. Rd8+ {[%clk 0:00:07]}  Kc6 {[%clk 0:00:59]} 43. Rxd6+ {[%clk 0:00:08]}  Kxb5 {[%clk 0:00:59]} 44. c8=Q {[%clk 0:00:09]}  Kb4 {[%clk 0:00:59]} 45. Rb6+ {[%clk 0:00:08]}  Ka5 {[%clk 0:00:59]} 46. Qa6# {[%clk 0:00:09]} 1-0


[Site "https://www.chess.com"]

[Event "Titled Tuesday Blitz May 30 Early 2023"]
[White "Bashirli, Saadat"]
[Black "Erzhanov, Arman"]
[WhiteFideId "13429990"]
[BlackFideId "4138821"]
[WhiteElo "1408"]
[BlackElo "2138"]
[Result "1/2-1/2"]
[Round "08"]
[TimeControl "180+2"]
[Date "2023.05.30"]
[WhiteClock "0:01:31"]
[BlackClock "0:01:40"]

1. e4 {[%clk 0:03:00]}  d6 {[%clk 0:03:00]} 2. d4 {[%clk 0:03:00]}  Nf6 {[%clk 0:03:00]} 3. Nc3 {[%clk 0:03:00]}  c6 {[%clk 0:02:57]} 4. Be2 {[%clk 0:03:00]}  e5 {[%clk 0:02:55]} 5. dxe5 {[%clk 0:02:59]}  dxe5 {[%clk 0:02:56]} 6. Qxd8+ {[%clk 0:03:00]}  Kxd8 {[%clk 0:02:56]} 7. Be3 {[%clk 0:02:58]}  Be6 {[%clk 0:02:56]} 8. O-O-O+ {[%clk 0:02:58]}  Nbd7 {[%clk 0:02:54]} 9. Nf3 {[%clk 0:02:58]}  Ng4 {[%clk 0:02:43]} 10. Ng5 {[%clk 0:02:50]}  Nxe3 {[%clk 0:02:42]} 11. fxe3 {[%clk 0:02:46]}  Ke7 {[%clk 0:02:40]} 12. Nxe6 {[%clk 0:02:44]}  fxe6 {[%clk 0:02:34]} 13. Rhf1 {[%clk 0:02:43]}  Nf6 {[%clk 0:02:33]} 14. g4 {[%clk 0:02:40]}  h6 {[%clk 0:02:31]} 15. h4 {[%clk 0:02:40]}  g5 {[%clk 0:02:31]} 16. h5 {[%clk 0:02:40]}  Bg7 {[%clk 0:02:29]} 17. Rd2 {[%clk 0:02:34]}  Rhd8 {[%clk 0:02:27]} 18. Rxd8 {[%clk 0:02:24]}  Rxd8 {[%clk 0:02:25]} 19. Rd1 {[%clk 0:02:24]}  Rb8 {[%clk 0:02:19]} 20. b4 {[%clk 0:02:22]}  b5 {[%clk 0:02:16]} 21. Kb2 {[%clk 0:02:21]}  Bf8 {[%clk 0:02:16]} 22. a3 {[%clk 0:02:19]}  Ke8 {[%clk 0:02:14]} 23. Kb3 {[%clk 0:02:16]}  Be7 {[%clk 0:02:12]} 24. Bf3 {[%clk 0:02:12]}  Rd8 {[%clk 0:02:03]} 25. Rxd8+ {[%clk 0:02:11]}  Bxd8 {[%clk 0:02:03]} 26. a4 {[%clk 0:02:10]}  a6 {[%clk 0:02:03]} 27. a5 {[%clk 0:02:09]}  Be7 {[%clk 0:02:03]} 28. Ne2 {[%clk 0:02:09]}  c5 {[%clk 0:02:02]} 29. c3 {[%clk 0:02:08]}  Kd7 {[%clk 0:01:59]} 30. Nc1 {[%clk 0:02:03]}  Kc6 {[%clk 0:01:59]} 31. Ka3 {[%clk 0:01:53]}  Nd7 {[%clk 0:01:52]} 32. Nd3 {[%clk 0:01:50]}  Bd6 {[%clk 0:01:52]} 33. Nf2 {[%clk 0:01:39]}  Kc7 {[%clk 0:01:50]} 34. Nd3 {[%clk 0:01:37]}  Kc6 {[%clk 0:01:47]} 35. Nf2 {[%clk 0:01:37]}  Nb8 {[%clk 0:01:48]} 36. Nd3 {[%clk 0:01:31]}  Nd7 {[%clk 0:01:40]} 1/2-1/2


[Site "https://www.chess.com"]

[Event "Titled Tuesday Blitz May 30 Early 2023"]
[White "Acikel, Mert"]
[Black "Alexikov, Alexander"]
[WhiteFideId "12956465"]
[BlackFideId "14103958"]
[WhiteElo "2097"]
[BlackElo "2186"]
[Result "0-1"]
[Round "08"]
[TimeControl "180+2"]
[Date "2023.05.30"]
[WhiteClock "0:00:02"]
[BlackClock "0:00:09"]

1. e4 {[%clk 0:03:00]}  c5 {[%clk 0:02:20]} 2. Nf3 {[%clk 0:03:00]}  d6 {[%clk 0:02:20]} 3. Bb5+ {[%clk 0:03:00]}  Nd7 {[%clk 0:02:19]} 4. Ba4 {[%clk 0:03:00]}  a6 {[%clk 0:02:18]} 5. c4 {[%clk 0:03:00]}  Nf6 {[%clk 0:02:17]} 6. O-O {[%clk 0:03:01]}  e6 {[%clk 0:02:17]} 7. Re1 {[%clk 0:03:00]}  Be7 {[%clk 0:02:17]} 8. d4 {[%clk 0:02:58]}  cxd4 {[%clk 0:02:15]} 9. Nxd4 {[%clk 0:02:59]}  O-O {[%clk 0:02:15]} 10. Bc2 {[%clk 0:02:59]}  Qc7 {[%clk 0:02:13]} 11. b3 {[%clk 0:02:57]}  b6 {[%clk 0:02:13]} 12. Bb2 {[%clk 0:02:56]}  Bb7 {[%clk 0:02:13]} 13. Nc3 {[%clk 0:02:57]}  Rac8 {[%clk 0:02:13]} 14. Rc1 {[%clk 0:02:55]}  Qb8 {[%clk 0:02:12]} 15. Bb1 {[%clk 0:02:53]}  Bd8 {[%clk 0:02:06]} 16. Qd2 {[%clk 0:02:46]}  Bc7 {[%clk 0:02:05]} 17. h3 {[%clk 0:02:45]}  Qa8 {[%clk 0:02:05]} 18. Nf3 {[%clk 0:02:35]}  Rcd8 {[%clk 0:02:03]} 19. Qe2 {[%clk 0:02:31]}  Nc5 {[%clk 0:02:02]} 20. Rcd1 {[%clk 0:02:28]}  Rfe8 {[%clk 0:01:55]} 21. Qc2 {[%clk 0:02:25]}  Ncd7 {[%clk 0:01:47]} 22. Ba3 {[%clk 0:02:18]}  Nc5 {[%clk 0:01:46]} 23. b4 {[%clk 0:02:06]}  Ncd7 {[%clk 0:01:43]} 24. Bb2 {[%clk 0:02:04]}  Ne5 {[%clk 0:01:40]} 25. Nd2 {[%clk 0:01:58]}  Rc8 {[%clk 0:01:29]} 26. Qb3 {[%clk 0:01:52]}  Ng6 {[%clk 0:01:26]} 27. Ne2 {[%clk 0:01:45]}  Nd7 {[%clk 0:01:18]} 28. Qc3 {[%clk 0:01:29]}  e5 {[%clk 0:01:13]} 29. Qb3 {[%clk 0:01:27]}  Ndf8 {[%clk 0:01:12]} 30. Nc3 {[%clk 0:01:24]}  Ne6 {[%clk 0:01:12]} 31. Nd5 {[%clk 0:01:23]}  Bxd5 {[%clk 0:01:08]} 32. cxd5 {[%clk 0:01:18]}  Nef8 {[%clk 0:01:08]} 33. Rc1 {[%clk 0:01:17]}  b5 {[%clk 0:01:03]} 34. Rc6 {[%clk 0:01:11]}  Ne7 {[%clk 0:01:02]} 35. Rc2 {[%clk 0:01:10]}  Bb6 {[%clk 0:01:01]} 36. Rec1 {[%clk 0:01:05]}  Rxc2 {[%clk 0:01:01]} 37. Rxc2 {[%clk 0:01:02]}  Rc8 {[%clk 0:00:59]} 38. Nf1 {[%clk 0:00:55]}  Nfg6 {[%clk 0:00:55]} 39. Rxc8+ {[%clk 0:00:54]}  Qxc8 {[%clk 0:00:54]} 40. Qc2 {[%clk 0:00:55]}  Qd7 {[%clk 0:00:52]} 41. Bc1 {[%clk 0:00:50]}  h6 {[%clk 0:00:48]} 42. Be3 {[%clk 0:00:35]}  Bxe3 {[%clk 0:00:44]} 43. Nxe3 {[%clk 0:00:36]}  Qc8 {[%clk 0:00:43]} 44. Qxc8+ {[%clk 0:00:31]}  Nxc8 {[%clk 0:00:42]} 45. Nf5 {[%clk 0:00:32]}  Nge7 {[%clk 0:00:40]} 46. Bd3 {[%clk 0:00:32]}  Nxf5 {[%clk 0:00:39]} 47. exf5 {[%clk 0:00:32]}  Nb6 {[%clk 0:00:37]} 48. Be4 {[%clk 0:00:28]}  Kf8 {[%clk 0:00:37]} 49. Kf1 {[%clk 0:00:26]}  Ke7 {[%clk 0:00:38]} 50. Ke2 {[%clk 0:00:26]}  Kf6 {[%clk 0:00:37]} 51. g4 {[%clk 0:00:27]}  h5 {[%clk 0:00:36]} 52. f3 {[%clk 0:00:23]}  Kg5 {[%clk 0:00:36]} 53. gxh5 {[%clk 0:00:17]}  Kxh5 {[%clk 0:00:35]} 54. Kf2 {[%clk 0:00:14]}  Kh4 {[%clk 0:00:35]} 55. Kg2 {[%clk 0:00:14]}  Na4 {[%clk 0:00:31]} 56. Bd3 {[%clk 0:00:12]}  Nc3 {[%clk 0:00:30]} 57. a3 {[%clk 0:00:11]}  Nxd5 {[%clk 0:00:29]} 58. Be4 {[%clk 0:00:08]}  Nc7 {[%clk 0:00:28]} 59. Bc6 {[%clk 0:00:07]}  Kg5 {[%clk 0:00:27]} 60. Bd7 {[%clk 0:00:07]}  Kf4 {[%clk 0:00:27]} 61. Bc8 {[%clk 0:00:07]}  f6 {[%clk 0:00:25]} 62. h4 {[%clk 0:00:07]}  d5 {[%clk 0:00:24]} 63. Kf2 {[%clk 0:00:07]}  e4 {[%clk 0:00:19]} 64. fxe4 {[%clk 0:00:07]}  dxe4 {[%clk 0:00:19]} 65. Ke2 {[%clk 0:00:07]}  Ke5 {[%clk 0:00:10]} 66. Kf2 {[%clk 0:00:06]}  Kd4 {[%clk 0:00:09]} 67. Ke2 {[%clk 0:00:02]}  Kc3 {[%clk 0:00:09]} 0-1


[Site "https://www.chess.com"]

[Event "Titled Tuesday Blitz May 30 Early 2023"]
[White "Camilla_Lee"]
[Black "Sarkar, Justin"]
[BlackFideId "2010011"]
[WhiteElo "2642"]
[BlackElo "2168"]
[Result "1-0"]
[Round "08"]
[TimeControl "180+2"]
[Date "2023.05.30"]
[WhiteClock "0:01:17"]
[BlackClock "0:00:00"]

1. e4 {[%clk 0:03:00]}  e5 {[%clk 0:02:52]} 2. Nf3 {[%clk 0:03:00]}  Nc6 {[%clk 0:02:52]} 3. Nc3 {[%clk 0:03:00]}  Nf6 {[%clk 0:02:51]} 4. d4 {[%clk 0:03:00]}  exd4 {[%clk 0:02:49]} 5. Nd5 {[%clk 0:03:00]}  d6 {[%clk 0:02:31]} 6. Nxd4 {[%clk 0:02:56]}  Nxe4 {[%clk 0:01:33]} 7. Nb5 {[%clk 0:02:52]}  Be6 {[%clk 0:01:13]} 8. Ndxc7+ {[%clk 0:02:37]}  Kd7 {[%clk 0:01:12]} 9. Nxa8 {[%clk 0:02:35]}  Qxa8 {[%clk 0:01:12]} 10. Be3 {[%clk 0:02:29]}  Be7 {[%clk 0:01:07]} 11. Bd3 {[%clk 0:02:26]}  Nf6 {[%clk 0:01:03]} 12. h3 {[%clk 0:02:19]}  Rd8 {[%clk 0:01:00]} 13. O-O {[%clk 0:02:15]}  a6 {[%clk 0:00:59]} 14. Nd4 {[%clk 0:02:15]}  Nxd4 {[%clk 0:00:57]} 15. Bxd4 {[%clk 0:02:16]}  Ke8 {[%clk 0:00:57]} 16. Qe2 {[%clk 0:02:04]}  Kf8 {[%clk 0:00:55]} 17. Rae1 {[%clk 0:02:02]}  Re8 {[%clk 0:00:52]} 18. f4 {[%clk 0:02:03]}  b5 {[%clk 0:00:46]} 19. f5 {[%clk 0:02:01]}  Bd5 {[%clk 0:00:44]} 20. Qf2 {[%clk 0:02:00]}  Qc6 {[%clk 0:00:39]} 21. Re2 {[%clk 0:01:47]}  Be4 {[%clk 0:00:12]} 22. Rfe1 {[%clk 0:01:39]}  d5 {[%clk 0:00:09]} 23. Qh4 {[%clk 0:01:30]}  h6 {[%clk 0:00:00]} 24. Qf4 {[%clk 0:01:17]} 1-0


[Site "https://www.chess.com"]

[Event "Titled Tuesday Blitz May 30 Early 2023"]
[White "Parpiev, Isaak"]
[Black "Dubreuil, Julien"]
[WhiteFideId "34281576"]
[BlackFideId "621285"]
[WhiteElo "2115"]
[BlackElo "2321"]
[Result "1-0"]
[Round "08"]
[TimeControl "180+2"]
[Date "2023.05.30"]
[WhiteClock "0:02:02"]
[BlackClock "0:00:09"]

1. d4 {[%clk 0:03:00]}  d5 {[%clk 0:02:59]} 2. c4 {[%clk 0:03:00]}  e6 {[%clk 0:03:00]} 3. Nc3 {[%clk 0:03:00]}  Nf6 {[%clk 0:03:00]} 4. cxd5 {[%clk 0:03:00]}  Nxd5 {[%clk 0:03:00]} 5. e4 {[%clk 0:03:00]}  Nxc3 {[%clk 0:03:00]} 6. bxc3 {[%clk 0:03:01]}  c5 {[%clk 0:03:01]} 7. a3 {[%clk 0:03:02]}  Be7 {[%clk 0:02:59]} 8. Nf3 {[%clk 0:03:02]}  O-O {[%clk 0:02:59]} 9. Bd3 {[%clk 0:03:02]}  b6 {[%clk 0:02:57]} 10. h4 {[%clk 0:02:58]}  Bb7 {[%clk 0:02:50]} 11. Be3 {[%clk 0:02:55]}  cxd4 {[%clk 0:02:39]} 12. cxd4 {[%clk 0:02:55]}  Nc6 {[%clk 0:02:38]} 13. e5 {[%clk 0:02:55]}  Na5 {[%clk 0:02:33]} 14. Bxh7+ {[%clk 0:02:54]}  Kxh7 {[%clk 0:02:33]} 15. Ng5+ {[%clk 0:02:54]}  Kg8 {[%clk 0:01:13]} 16. Qh5 {[%clk 0:02:52]}  Be4 {[%clk 0:00:55]} 17. Nxe4 {[%clk 0:02:45]}  f6 {[%clk 0:00:35]} 18. exf6 {[%clk 0:02:25]}  Rxf6 {[%clk 0:00:26]} 19. Nxf6+ {[%clk 0:02:24]}  Bxf6 {[%clk 0:00:26]} 20. Qg4 {[%clk 0:02:19]}  Qd5 {[%clk 0:00:25]} 21. h5 {[%clk 0:02:17]}  Nb3 {[%clk 0:00:22]} 22. Rd1 {[%clk 0:02:15]}  Rc8 {[%clk 0:00:12]} 23. O-O {[%clk 0:02:11]}  Rc7 {[%clk 0:00:12]} 24. h6 {[%clk 0:02:11]}  Rf7 {[%clk 0:00:12]} 25. Qg6 {[%clk 0:02:02]}  Qf5 {[%clk 0:00:11]} 26. h7+ {[%clk 0:02:02]}  Kh8 {[%clk 0:00:09]} 27. Qxf7 {[%clk 0:02:02]} 1-0


[Site "https://www.chess.com"]